fUST/lending_fUST_20250603
["ID","MTS","AMOUNT","RATE_DAILY","PERIOD"]
[363986613,1748952677627,-502.68132567,0.00022739,2]
[363986614,1748952677637,-489.93491729,0.00022739,2]
[363986615,1748952677647,-775.51431858,0.00022739,2]
[363986616,1748952677658,-831.03936774,0.00022739,2]
[363986617,1748952677667,-721.81521261,0.00022739,2]
[363986618,1748952677676,-659.17,0.00022739,2]
[363986619,1748952677686,-793.47649026,0.00022739,2]
[363986620,1748952677696,-1090.69,0.00022739,2]
[363986621,1748952677706,-910.27392787,0.00022739,2]
[363986622,1748952677716,-1158.85577497,0.00022739,2]
[363986623,1748952677727,-1354.88432384,0.00022739,2]
[363986624,1748952677739,-4178.52999998,0.00022739,2]
[363986625,1748952677750,-214.31899576,0.00022739,2]
[363986626,1748952677760,-1406.71629122,0.00022739,2]
[363986627,1748952677771,-490.49680014,0.00022739,2]
[363986628,1748952677781,-4549.86472302,0.00022739,2]
[363986629,1748952677792,-6349.76942532,0.00022739,2]
[363986630,1748952677802,-464.87562716,0.00022739,2]
[363986631,1748952677812,-1055.02206632,0.00022739,2]
[363986632,1748952677823,-2078.37680322,0.00022739,2]
[363986633,1748952677833,-975.62496981,0.00022739,2]
[363986634,1748952677843,-1037.62323822,0.00022739,2]
[363986635,1748952677852,-2003.81,0.00022739,2]
[363986636,1748952677861,-650.34,0.00022739,2]
[363986637,1748952677871,-494.32595677,0.00022739,2]
[363986638,1748952677880,-1253.0101321,0.00022739,2]
[363986639,1748952677890,-606.63,0.00022739,2]
[363986640,1748952677899,-3574.10963251,0.00022739,2]
[363986641,1748952677908,-510.77100329,0.00022739,2]
[363986642,1748952677917,-4695.17659813,0.00022739,2]
[363986643,1748952677927,-444.7847904,0.00022739,2]
[363986644,1748952677938,-1259.98,0.00022739,2]
[363986645,1748952677948,-460.84,0.00022739,2]
[363986646,1748952677958,-522.9,0.00022739,6]
[363986647,1748952677968,-508.64371732,0.00022739,2]
[363986648,1748952677977,-1819.93710317,0.00022739,2]
[363986649,1748952677987,-2376.39950076,0.00022739,2]
[363986650,1748952677997,-568.80953809,0.00022739,2]
[363986651,1748952678007,-772.29,0.00022739,2]
[363986652,1748952678016,-806.94,0.00022739,2]
[363986653,1748952678026,-858.26461765,0.00022739,2]
[363986654,1748952678036,-535.00828676,0.00022739,2]
[363986655,1748952678045,-948.59,0.00022739,2]
[363986656,1748952678055,-541.23,0.00022739,2]
[363986657,1748952678064,-2901.06252734,0.00022739,2]
[363986658,1748952678074,-3172.63327318,0.00022739,2]
[363986659,1748952678084,-944.72275813,0.00022739,2]
[363986660,1748952678093,-750.37,0.00022739,2]
[363986661,1748952678103,-5029.21447997,0.00022739,2]
[363986662,1748952678112,-492.0,0.00022739,2]
[363986663,1748952678121,-1740.52606015,0.00022739,2]
[363986664,1748952678131,-5951.84695606,0.00022739,2]
[363986665,1748952678141,-1274.24023642,0.00022739,2]
[363986666,1748952678150,-5342.30141108,0.00022739,2]
[363986667,1748952678160,-5000.0,0.00022752,2]
[363986668,1748952678170,-6899.50677586,0.00022761,2]
[363986669,1748952678180,-158.53491891,0.00022772,27]
[363986670,1748952678190,-200.0,0.000229,3]
[363986671,1748952678200,-5018.92474773,0.00022929,2]
[363986672,1748952678210,-5000.0,0.00022929,2]
[363986673,1748952678220,-5000.0,0.00022929,2]
[363986674,1748952678229,-5000.0,0.00022929,2]
[363986675,1748952678238,-5000.0,0.00022929,2]
[363986676,1748952678248,-3488.49746002,0.00022969,8]
[363986677,1748952678257,-175.655,0.00022997,2]
[363986678,1748952678268,-500.0,0.00023,2]
[363986679,1748952678278,-13400.0,0.00023,2]
[363986680,1748952678287,-160.0,0.00023,3]
[363986681,1748952678297,-160.0,0.00023,3]
[363986682,1748952678307,-335.961547,0.00023,7]
[363986683,1748952678318,-335.961547,0.00023,7]
[363986684,1748952678327,-730.994061,0.00023,7]
[363986685,1748952678337,-730.994061,0.00023,7]
[363986686,1748952678347,-398.848346,0.00023,7]
[363986687,1748952678357,-1154.297986,0.00023,7]
[363986688,1748952678367,-1154.297986,0.00023,7]
[363986689,1748952678376,-768.032153,0.00023,2]
[363986690,1748952678385,-768.032153,0.00023,2]
[363986691,1748952678395,-229.42821335,0.00023,3]
[363986692,1748952678406,-160.0,0.00023,3]
[363986693,1748952678416,-423.63107087,0.00023,3]
[363986694,1748952678426,-638.0,0.00023,2]
[363986695,1748952678437,-1090.69,0.00023013,2]
[363986696,1748952678447,-500.0,0.00023013,2]
[363986697,1748952678457,-166.0,0.00023014,7]
[363986698,1748952678467,-160.0,0.00023028,3]
[363986699,1748952678477,-151.0,0.000231,6]
[363986700,1748952678486,-143841.6,0.000231,7]
[363986701,1748952678496,-335.961547,0.000231,7]
[363986702,1748952678506,-335.961547,0.000231,7]
[363986703,1748952678516,-730.994061,0.000231,7]
[363986704,1748952678526,-730.994061,0.000231,7]
[363986705,1748952678535,-398.848346,0.000231,7]
[363986706,1748952678546,-398.848346,0.000231,7]
[363986707,1748952678556,-1154.297986,0.000231,7]
[363986708,1748952678567,-1154.297986,0.000231,7]
[363986709,1748952678576,-768.032153,0.000231,2]
[363986710,1748952678587,-768.032153,0.000231,2]
[363986711,1748952678597,-304.192784,0.00023171,2]
[363986712,1748952678606,-485.3452487,0.00023178,2]
[363986713,1748952678616,-364.5107659,0.00023178,2]
[363986714,1748952678627,-364.5107659,0.00023178,2]
[363986715,1748952678637,-364.5107659,0.00023178,2]
[363986716,1748952678647,-364.5107659,0.00023178,2]
[363986717,1748952678657,-364.5107659,0.00023178,2]
[363986718,1748952678667,-364.5107659,0.00023178,2]
[363986719,1748952678677,-364.5107659,0.00023178,2]
[363986720,1748952678688,-364.5107659,0.00023178,2]
[363986721,1748952678700,-153.0,0.00023178,2]
[363986722,1748952678711,-153.0,0.00023178,2]
[363986723,1748952678724,-153.0,0.00023178,2]
[363986724,1748952678735,-153.0,0.00023178,2]
[363986725,1748952678746,-153.0,0.00023178,2]
[363986726,1748952678757,-153.0,0.00023178,2]
[363986727,1748952678769,-153.0,0.00023178,2]
[363986728,1748952678780,-153.0,0.00023178,2]
[363986729,1748952678792,-153.0,0.00023178,2]
[363986730,1748952678803,-3488.49746002,0.00023245,8]
[363986731,1748952678813,-30696.06279889,0.00023248,7]
[363986732,1748952678823,-1090.69,0.00023287,2]
[363986733,1748952678833,-522.9,0.00023287,7]
[363986734,1748952678843,-319.1604193,0.00023315,2]
[363986735,1748952678853,-1195.8619859,0.00023315,2]
[363986736,1748952678863,-153.0,0.00023315,2]
[363986737,1748952678874,-1511.91189,0.00023324,3]
[363986738,1748952678884,-1466.18,0.000234,7]
[363986739,1748952678894,-6899.50677586,0.00023444,2]
[363986740,1748952678905,-3488.49746002,0.00023521,9]
[363986741,1748952678915,-160.0,0.00023561,2]
[363986742,1748952678925,-1090.70414913,0.00023561,2]
[363986743,1748952678934,-500.0,0.00023561,2]
[363986744,1748952678946,-2518.67,0.000236,7]
[363986745,1748952678956,-223.0315306,0.00023634,2]
[363986746,1748952678966,-42418.87881346,0.00023679,2]
[363986747,1748952678976,-3488.49746002,0.00023797,9]
[363986748,1748952678987,-2000.0,0.000238,2]
[363986749,1748952678996,-2000.0,0.000238,2]
[363986750,1748952679006,-2000.0,0.000238,2]
[363986751,1748952679016,-238.94,0.000238,31]
[363986752,1748952679026,-238.94,0.000238,31]
[363986753,1748952679036,-238.94,0.000238,31]
[363986754,1748952679046,-238.94,0.000238,31]
[363986755,1748952679055,-238.94,0.000238,31]
[363986756,1748952679065,-238.94,0.000238,31]
[363986757,1748952679076,-238.94,0.000238,31]
[363986758,1748952679087,-238.94,0.000238,31]
[363986759,1748952679097,-238.94,0.000238,31]
[363986760,1748952679106,-238.94,0.000238,31]
[363986761,1748952679115,-238.94,0.000238,31]
[363986762,1748952679124,-238.94,0.000238,31]
[363986763,1748952679134,-238.94,0.000238,31]
[363986764,1748952679144,-238.94,0.000238,31]
[363986765,1748952679154,-238.94,0.000238,31]
[363986766,1748952679163,-238.94,0.000238,31]
[363986767,1748952679173,-35823.45682028,0.0002383,7]
[363986768,1748952679203,-440.0,0.00016438,2]
[363986769,1748952679327,-80.4,0.0002383,7]
[363986770,1748952679425,-10549.15488855,0.0002383,7]
[363986771,1748952679666,-170.21566736,0.00016438,2]
[363986772,1748952679676,-430.0,0.00016438,2]
[363986773,1748952679687,-440.0,0.00016438,2]
[363986774,1748952679697,-401.61429903,0.00016438,2]
[363986775,1748952679708,-151.0,0.00016712,2]
[363986776,1748952679718,-440.0,0.00016712,2]
[363986777,1748952679727,-420.0,0.00016712,2]
[363986778,1748952679742,-151.0,0.00016712,2]
[363986779,1748952679751,-151.0,0.00016712,2]
[363986780,1748952679762,-151.0,0.00016986,2]
[363986781,1748952679772,-440.0,0.00016986,2]
[363986782,1748952679783,-151.0,0.00016986,2]
[363986783,1748952679793,-151.0,0.0001726,2]
[363986784,1748952679802,-440.0,0.0001726,2]
[363986785,1748952679813,-151.0,0.0001726,2]
[363986786,1748952679824,-440.0,0.00017534,2]
[363986787,1748952679833,-151.0,0.00017534,2]
[363986788,1748952679843,-93.01157625,0.00017807,2]
[363986789,1748952679854,-57.98842375,0.00017807,2]
[363986790,1748952679864,-440.0,0.00017808,2]
[363986791,1748952679873,-440.0,0.00017808,2]
[363986792,1748952679883,-151.0,0.00017808,2]
[363986793,1748952679893,-440.0,0.00018082,2]
[363986794,1748952679901,-440.0,0.00018082,2]
[363986795,1748952679911,-151.0,0.00018082,2]
[363986796,1748952679922,-440.0,0.00018356,2]
[363986797,1748952679932,-440.0,0.00018356,2]
[363986798,1748952679944,-151.0,0.00018356,2]
[363986799,1748952679954,-440.0,0.0001863,2]
[363986800,1748952679964,-450.0,0.0001863,2]
[363986801,1748952679974,-440.0,0.00018904,2]
[363986802,1748952679985,-440.0,0.00019178,2]
[363986803,1748952679995,-171.58129115,0.00019452,2]
[363986804,1748952680004,-17743.27,0.00022191,2]
[363986805,1748952680014,-17743.27,0.00022465,2]
[363986806,1748952680024,-17743.42419889,0.00022739,2]
[363986807,1748952680034,-123530.16899457,0.0002383,7]
[363986808,1748952680043,-1742.0,0.0002383,3]
[363986809,1748952680053,-1742.0,0.0002383,3]
[363986810,1748952680062,-1742.0,0.0002383,3]
[363986811,1748952680072,-1188.62037801,0.0002383,3]
[363986812,1748952680081,-335.961547,0.0002383,7]
[363986813,1748952680090,-335.961547,0.0002383,7]
[363986814,1748952680099,-730.994061,0.0002383,7]
[363986815,1748952680108,-730.994061,0.0002383,7]
[363986816,1748952680117,-398.848346,0.0002383,7]
[363986817,1748952680126,-398.848346,0.0002383,7]
[363986818,1748952680135,-1154.297986,0.0002383,7]
[363986819,1748952680144,-1154.297986,0.0002383,7]
[363986820,1748952680154,-768.032153,0.0002383,2]
[363986821,1748952680164,-768.032153,0.0002383,2]
[363986822,1748952680174,-159.281008,0.0002383,7]
[363986823,1748952680183,-522.9,0.00023835,8]
[363986824,1748952680195,-400.0,0.00023848,3]
[363986825,1748952680206,-1000.0,0.00023848,2]
[363986826,1748952680216,-1000.0,0.00023848,2]
[363986827,1748952680226,-752.6,0.00023894,5]
[363986828,1748952680235,-2002.18,0.00023899,7]
[363986829,1748952680245,-1500.0,0.000239,7]
[363986830,1748952680255,-552.04,0.000239,14]
[363986831,1748952680265,-52341.49,0.000239,2]
[363986832,1748952680275,-2155.33709091,0.000239,2]
[363986833,1748952680284,-153.0,0.00023918,2]
[363986834,1748952680294,-153.0,0.00023918,2]
[363986835,1748952680304,-199563.37231851,0.00023918,5]
[363986836,1748952680313,-335.961547,0.00023918,7]
[363986837,1748952680324,-335.961547,0.00023918,7]
[363986838,1748952680333,-730.994061,0.00023918,7]
[363986839,1748952680343,-730.994061,0.00023918,7]
[363986840,1748952680354,-398.848346,0.00023918,7]
[363986841,1748952680364,-398.848346,0.00023918,7]
[363986842,1748952680374,-1154.297986,0.00023918,7]
[363986843,1748952680384,-1154.297986,0.00023918,7]
[363986844,1748952680394,-768.032153,0.00023918,2]
[363986845,1748952680404,-768.032153,0.00023918,2]
[363986846,1748952680414,-228.495,0.00023919,7]
[363986847,1748952680423,-227.679231,0.00023919,7]
[363986848,1748952680433,-228.495,0.00023919,7]
[363986849,1748952680444,-227.679231,0.00023919,7]
[363986850,1748952680454,-159.79694846,0.00023973,2]
[363986851,1748952680464,-709.0,0.00023975,2]
[363986852,1748952680474,-2225.0,0.00023975,2]
[363986853,1748952680484,-405.0,0.00023975,2]
[363986854,1748952680494,-752.6,0.00023994,7]
[363986855,1748952680503,-160.0,0.00024,3]
[363986856,1748952680513,-1682.61029819,0.00024,2]
[363986857,1748952680522,-151.0,0.00024,14]
[363986858,1748952680532,-10085.53759492,0.00024,2]
[363986859,1748952680542,-12261.0,0.00024,2]
[363986860,1748952680552,-196790.0,0.00024,2]
[363986861,1748952680563,-30240.0,0.00024,2]
[363986862,1748952680572,-500.0,0.00024,2]
[363986863,1748952680582,-1205391.0,0.00024,10]
[363986864,1748952680591,-10264.0,0.00024,2]
[363986865,1748952680600,-38116.0,0.00024,2]
[363986866,1748952680610,-17183.0,0.00024,2]
[363986867,1748952680620,-280565.0,0.00024,2]
[363986868,1748952680629,-160.0,0.00024,7]
[363986869,1748952680639,-160.0,0.00024,10]
[363986870,1748952680648,-19629.1449248,0.00024,10]
[363986871,1748952680657,-88212.0,0.00024,2]
[363986872,1748952680666,-55403.0,0.00024,2]
[363986873,1748952680675,-83404.48464726,0.00024,2]
[363986874,1748952735746,2990.0,0.00024658,120]
[363986875,1748952929671,1603.46102,0.00024658,120]
[363986896,1748953087035,5000.0,0.00016,2]
[363986900,1748953419340,186.0,0.00016,2]
[363986901,1748953420533,186.0,0.00016,2]
[363986906,1748953525113,198.63038,0.00013699,2]
[363986911,1748953715558,500.0,0.00024,120]
[363987062,1748953831955,-260.4345052,0.00016338,2]
[363987063,1748953831965,-300.0,0.00016436,2]
[363987065,1748953831974,-300.0,0.00016436,2]
[363987066,1748953831984,-710.7464983,0.00016436,2]
[363987067,1748953831996,-489.2535017,0.00016436,2]
[363987068,1748953832006,-510.6464983,0.00016437,2]
[363987069,1748953832017,-859.95,0.00016437,2]
[363987073,1748953832226,-648.8735017,0.00016437,2]
[363987074,1748953832237,-2019.47,0.00016437,2]
[363987075,1748953832246,-2019.47,0.00016437,2]
[363987076,1748953832255,-2019.47,0.00016437,2]
[363987077,1748953832264,-2019.47,0.00016437,2]
[363987078,1748953832274,-2019.47,0.00016437,2]
[363987079,1748953832283,-2019.47,0.00016437,2]
[363987080,1748953832292,-2019.47,0.00016437,2]
[363987081,1748953832302,-2019.47,0.00016437,2]
[363987082,1748953832311,-2019.47,0.00016437,2]
[363987083,1748953832322,-2019.47,0.00016437,2]
[363987084,1748953832332,-813.11586593,0.00016437,2]
[363987085,1748953832344,-695.00504384,0.00016437,2]
[363987086,1748953832356,-511.34909023,0.00016437,2]
[363987087,1748953832366,-1122.69537627,0.00016437,2]
[363987114,1748953837874,-896.77462373,0.00016437,2]
[363987116,1748953837885,-2019.47,0.00016437,2]
[363987118,1748953837894,-2019.47,0.00016437,2]
[363987120,1748953837904,-430.59663061,0.00016438,2]
[363987122,1748953837914,-172.64307448,0.00016438,2]
[363987124,1748953837924,-430.0,0.00016438,2]
[363987126,1748953837934,-440.0,0.00016438,2]
[363987128,1748953837943,-440.0,0.00016438,2]
[363987130,1748953837952,-430.86400016,0.00016438,2]
[363987132,1748953837962,-436.17529485,0.00016438,2]
[363987135,1748953837972,-440.0,0.00016438,2]
[363987137,1748953837982,-430.0,0.00016438,2]
[363987141,1748953837991,-430.0,0.00016438,2]
[363987145,1748953838001,-430.0,0.00016438,2]
[363987147,1748953838011,-188.0,0.00016438,2]
[363987149,1748953838020,-440.0,0.00016438,2]
[363987151,1748953838029,-440.0,0.00016438,2]
[363987153,1748953838039,-430.0,0.00016438,2]
[363987155,1748953838048,-440.0,0.00016438,2]
[363987157,1748953838057,-434.29183906,0.00016438,2]
[363987159,1748953838067,-475.94891839,0.00016438,2]
[363987161,1748953838076,-440.0,0.00016438,2]
[363987163,1748953838086,-430.0,0.00016438,2]
[363987165,1748953838095,-440.0,0.00016438,2]
[363987167,1748953838104,-400.0,0.00016438,2]
[363987169,1748953838113,-430.0,0.00016438,2]
[363987171,1748953838123,-404.15048828,0.00016438,2]
[363987173,1748953838132,-430.0,0.00016438,2]
[363987175,1748953838141,-440.0,0.00016438,2]
[363987177,1748953838150,-430.0,0.00016438,2]
[363987179,1748953838161,-430.0,0.00016438,2]
[363987181,1748953838170,-430.0,0.00016438,2]
[363987183,1748953838181,-430.0,0.00016438,2]
[363987185,1748953838192,-440.0,0.00016438,2]
[363987187,1748953838201,-430.0,0.00016438,2]
[363987189,1748953838211,-440.0,0.00016438,2]
[363987191,1748953838220,-430.0,0.00016438,2]
[363987193,1748953838230,-430.0,0.00016438,2]
[363987195,1748953838240,-430.0,0.00016438,2]
[363987197,1748953838249,-440.0,0.00016438,2]
[363987199,1748953838259,-430.0,0.00016438,2]
[363987201,1748953838269,-430.0,0.00016438,2]
[363987203,1748953838280,-430.0,0.00016438,2]
[363987205,1748953838289,-430.0,0.00016438,2]
[363987207,1748953838298,-1000.0,0.00016438,2]
[363987208,1748953838308,-440.0,0.00016438,2]
[363987210,1748953838317,-430.0,0.00016438,2]
[363987212,1748953838326,-430.0,0.00016438,2]
[363987214,1748953838336,-430.0,0.00016438,2]
[363987217,1748953838345,-430.0,0.00016438,2]
[363987219,1748953838354,-430.0,0.00016438,2]
[363987220,1748953838364,-430.49222869,0.00016438,2]
[363987222,1748953838373,-440.0,0.00016438,2]
[363987225,1748953838383,-440.0,0.00016438,2]
[363987226,1748953838392,-430.0,0.00016438,2]
[363987228,1748953838401,-430.0,0.00016438,2]
[363987230,1748953838411,-430.0,0.00016438,2]
[363987232,1748953838421,-430.0,0.00016438,2]
[363987233,1748953838430,-430.0,0.00016438,2]
[363987234,1748953838439,-430.0,0.00016438,2]
[363987235,1748953838449,-440.0,0.00016438,2]
[363987236,1748953838458,-430.0,0.00016438,2]
[363987237,1748953838467,-430.0,0.00016438,2]
[363987239,1748953838477,-430.0,0.00016438,2]
[363987241,1748953838485,-469.04087542,0.00016438,2]
[363987242,1748953838496,-430.0,0.00016438,2]
[363987243,1748953838505,-440.0,0.00016438,2]
[363987244,1748953838514,-440.0,0.00016438,2]
[363987245,1748953838523,-430.0,0.00016438,2]
[363987246,1748953838532,-430.24668836,0.00016438,2]
[363987247,1748953838541,-440.0,0.00016438,2]
[363987248,1748953838550,-430.0,0.00016438,2]
[363987249,1748953838559,-268.3737017,0.00016438,2]
[363987250,1748953838568,-430.0,0.00016438,2]
[363987251,1748953838578,-430.0,0.00016438,2]
[363987252,1748953838587,-430.0,0.00016438,2]
[363987253,1748953838596,-347.60372021,0.00016438,2]
[363987254,1748953838605,-430.0,0.00016438,2]
[363987255,1748953838613,-430.0,0.00016438,2]
[363987256,1748953838622,-440.0,0.00016438,2]
[363987257,1748953838631,-432.21831234,0.00016438,2]
[363987258,1748953838640,-430.0,0.00016438,2]
[363987259,1748953838649,-430.0,0.00016438,2]
[363987260,1748953838658,-430.0,0.00016438,2]
[363987261,1748953838667,-433.73079762,0.00016438,2]
[363987262,1748953838677,-430.0,0.00016438,2]
[363987263,1748953838686,-430.0,0.00016438,2]
[363987265,1748953838695,-430.0,0.00016438,2]
[363987266,1748953838704,-400.0,0.00016438,2]
[363987267,1748953838714,-430.0,0.00016438,2]
[363987268,1748953838723,-430.0,0.00016438,2]
[363987270,1748953838732,-440.0,0.00016438,2]
[363987272,1748953838742,-432.73205702,0.00016438,2]
[363987274,1748953838751,-540.03036797,0.00016438,2]
[363987276,1748953838763,-440.0,0.00016438,2]
[363987278,1748953838772,-440.0,0.00016438,2]
[363987280,1748953838781,-440.0,0.00016438,2]
[363987282,1748953838790,-430.0,0.00016438,2]
[363987284,1748953838800,-430.0,0.00016438,2]
[363987286,1748953838809,-430.0,0.00016438,2]
[363987288,1748953838819,-430.0,0.00016438,2]
[363987290,1748953838828,-430.84065571,0.00016438,2]
[363987292,1748953838837,-402.31590047,0.00016438,2]
[363987294,1748953838846,-430.0,0.00016438,2]
[363987296,1748953838856,-430.0,0.00016438,2]
[363987298,1748953838866,-430.0,0.00016438,2]
[363987299,1748953838875,-500.0,0.00016438,2]
[363987302,1748953838885,-440.0,0.00016438,2]
[363987304,1748953838895,-430.0,0.00016438,2]
[363987306,1748953838904,-440.0,0.00016438,2]
[363987308,1748953838914,-425.78322106,0.00016438,2]
[363987310,1748953838923,-430.0,0.00016438,2]
[363987311,1748953838934,-501.66015232,0.00016438,2]
[363987314,1748953838944,-440.0,0.00016438,2]
[363987316,1748953838953,-430.0,0.00016438,2]
[363987317,1748953838962,-430.0,0.00016438,2]
[363987319,1748953838972,-430.0,0.00016438,2]
[363987321,1748953838982,-430.0,0.00016438,2]
[363987323,1748953838991,-430.0,0.00016438,2]
[363987325,1748953839001,-402.55223078,0.00016438,2]
[363987327,1748953839011,-256.90869552,0.00016438,2]
[363987329,1748953839021,-430.0,0.00016438,2]
[363987331,1748953839031,-401.11524373,0.00016438,2]
[363987333,1748953839040,-430.0,0.00016438,2]
[363987336,1748953839051,-430.0,0.00016438,2]
[363987337,1748953839061,-430.0,0.00016438,2]
[363987339,1748953839071,-164.93971599,0.00016438,2]
[363987341,1748953839081,-430.0,0.00016438,2]
[363987344,1748953839091,-430.0,0.00016438,2]
[363987346,1748953839102,-430.0,0.00016438,2]
[363987347,1748953839111,-430.0,0.00016438,2]
[363987350,1748953839122,-440.0,0.00016438,2]
[363987352,1748953839134,-430.0,0.00016438,2]
[363987354,1748953839145,-444.02968216,0.00016438,2]
[363987356,1748953839155,-430.0,0.00016438,2]
[363987358,1748953839164,-430.0,0.00016438,2]
[363987360,1748953839174,-430.0,0.00016438,2]
[363987362,1748953839187,-430.0,0.00016438,2]
[363987364,1748953839196,-430.0,0.00016438,2]
[363987366,1748953839206,-440.0,0.00016438,2]
[363987368,1748953839216,-430.0,0.00016438,2]
[363987370,1748953839226,-430.0,0.00016438,2]
[363987372,1748953839235,-430.0,0.00016438,2]
[363987374,1748953839245,-430.0,0.00016438,2]
[363987376,1748953839254,-430.0,0.00016438,2]
[363987377,1748953839265,-430.0,0.00016438,2]
[363987380,1748953839274,-440.0,0.00016438,2]
[363987382,1748953839285,-348.79835006,0.00016438,2]
[363987384,1748953839296,-430.0,0.00016438,2]
[363987386,1748953839306,-430.0,0.00016438,2]
[363987388,1748953839316,-440.0,0.00016438,2]
[363987390,1748953839326,-440.0,0.00016438,2]
[363987392,1748953839336,-430.0,0.00016438,2]
[363987394,1748953839345,-440.0,0.00016438,2]
[363987396,1748953839355,-440.0,0.00016438,2]
[363987398,1748953839364,-430.0,0.00016438,2]
[363987400,1748953839374,-430.0,0.00016438,2]
[363987402,1748953839383,-430.0,0.00016438,2]
[363987404,1748953839393,-430.0,0.00016438,2]
[363987406,1748953839403,-430.0,0.00016438,2]
[363987408,1748953839412,-440.0,0.00016438,2]
[363987410,1748953839422,-430.0,0.00016438,2]
[363987412,1748953839431,-410.27993454,0.00016438,2]
[363987414,1748953839441,-430.0,0.00016438,2]
[363987416,1748953839451,-430.0,0.00016438,2]
[363987418,1748953839461,-430.0,0.00016438,2]
[363987420,1748953839471,-430.0,0.00016438,2]
[363987422,1748953839481,-430.0,0.00016438,2]
[363987424,1748953839491,-440.0,0.00016438,2]
[363987426,1748953839501,-435.05701142,0.00016438,2]
[363987428,1748953839510,-235.38494211,0.00016438,2]
[363987430,1748953839520,-430.0,0.00016438,2]
[363987432,1748953839529,-430.0,0.00016438,2]
[363987434,1748953839539,-430.0,0.00016438,2]
[363987436,1748953839548,-430.0,0.00016438,2]
[363987438,1748953839558,-430.0,0.00016438,2]
[363987440,1748953839568,-430.0,0.00016438,2]
[363987442,1748953839578,-430.0,0.00016438,2]
[363987444,1748953839588,-424.78715799,0.00016438,2]
[363987446,1748953839597,-430.0,0.00016438,2]
[363987448,1748953839607,-400.0,0.00016438,2]
[363987450,1748953839616,-430.0,0.00016438,2]
[363987452,1748953839626,-430.0,0.00016438,2]
[363987454,1748953839635,-360.22614853,0.00016438,2]
[363987456,1748953839645,-501.28122029,0.00016438,2]
[363987458,1748953839654,-382.29660116,0.00016438,2]
[363987460,1748953839664,-367.1413686,0.00016438,2]
[363987462,1748953839674,-430.0,0.00016438,2]
[363987479,1748953839834,-430.0,0.00016438,2]
[363987481,1748953839845,-430.0,0.00016438,2]
[363987483,1748953839854,-430.0,0.00016438,2]
[363987485,1748953839864,-440.0,0.00016438,2]
[363987487,1748953839874,-440.0,0.00016438,2]
[363987489,1748953839885,-440.0,0.00016438,2]
[363987491,1748953839894,-430.0,0.00016438,2]
[363987493,1748953839905,-327.72,0.00016438,2]
[363987495,1748953839915,-430.0,0.00016438,2]
[363987497,1748953839925,-430.0,0.00016438,2]
[363987499,1748953839935,-362.78172173,0.00016438,2]
[363987501,1748953839944,-440.0,0.00016438,2]
[363987503,1748953839954,-335.53661525,0.00016438,2]
[363987505,1748953839964,-429.98812886,0.00016438,2]
[363987507,1748953839974,-440.0,0.00016438,2]
[363987509,1748953839983,-430.0,0.00016438,2]
[363987511,1748953839993,-440.0,0.00016438,2]
[363987513,1748953840003,-512.93519082,0.00016438,2]
[363987515,1748953840012,-430.0,0.00016438,2]
[363987517,1748953840022,-440.0,0.00016438,2]
[363987519,1748953840032,-440.0,0.00016438,2]
[363987521,1748953840042,-430.0,0.00016438,2]